bitfinex/quotes_SOLUSD_20251223
["timestamp","ask_amount","ask_price","bid_price","bid_amount"]
[1766474560235,0.1,124.42,124.38,9.95010756]
[1766474560548,0.67,124.41,124.38,8.03987779]
[1766474560748,0.67,124.41,124.38,9.95010756]
[1766474562265,0.67,124.41,124.38,8.03987779]
[1766474562437,0.67,124.41,124.38,9.95010756]
[1766474563337,0.67,124.41,124.37,24.63062402]
[1766474564159,0.67,124.41,124.37,9.95062402]
[1766474565536,0.67,124.41,124.38,1.91022977]
[1766474567169,0.67,124.41,124.37,9.95062402]
[1766474567556,0.67,124.41,124.38,1.91022977]
[1766474568551,0.67,124.41,124.37,8.04039425]
[1766474568869,0.67,124.41,124.38,9.95004692]
[1766474570270,0.67,124.41,124.37,9.95024633]
[1766474571069,2.58022977,124.39,124.28,40.23173479]
[1766474571374,0.67,124.36,124.32,8.0435282]
[1766474572244,0.67,124.36,124.32,9.95375797]
[1766474572600,0.67,124.36,124.32,37.15375797]
[1766474574570,12.34790273,124.38,124.32,37.15375797]
[1766474574773,11.10767296,124.37,124.33,1.91022977]
[1766474575769,11.10767296,124.37,124.33,9.95323898]
[1766474575948,0.67,124.36,124.33,8.04300921]
[1766474576148,0.67,124.36,124.33,9.95323898]
[1766474580600,20.09198003,124.43,124.33,30.06101666]
[1766474580894,0.67,124.38,124.34,16.59022977]
[1766474582085,0.67,124.37,124.35,8.04181745]
[1766474582465,11.10767296,124.38,124.35,8.04181745]
[1766474583492,11.10767296,124.38,124.34,22.72228224]
[1766474583493,0.67,124.37,124.34,22.72228224]
[1766474583792,0.67,124.37,124.33,22.72305369]
[1766474584672,0.67,124.37,124.33,49.92305369]
[1766474586995,0.67,124.37,124.33,51.83328346]
[1766474587486,10.43767296,124.4,124.35,1.91022977]
[1766474587660,0.72,124.39,124.35,1.91022977]
[1766474588566,0.72,124.39,124.35,9.9519259]
[1766474590768,0.72,124.39,124.34,8.04246421]
[1766474590990,0.72,124.39,124.35,1.91022977]
[1766474591499,0.72,124.39,124.34,8.04246421]
[1766474591500,11.15767296,124.39,124.36,1.91022977]
[1766474592075,11.15767296,124.39,124.35,1.91022977]
[1766474592301,11.15767296,124.39,124.34,8.04246421]
[1766474592302,0.72,124.38,124.34,8.04246421]
[1766474592597,0.72,124.38,124.34,22.72246421]
[1766474595198,0.72,124.38,124.34,24.63269398]
[1766474597619,0.72,124.38,124.34,51.83269398]
[1766474598082,0.72,124.38,124.34,52.90518212]
[1766474606092,0.72,124.38,124.34,49.92246421]
[1766474606318,0.72,124.38,124.34,35.24246421]
[1766474606619,0.72,124.38,124.34,49.92246421]
[1766474608013,0.72,124.38,124.34,52.90518212]
[1766474608626,0.1,124.42,124.34,49.92246421]
[1766474608913,0.82,124.42,124.34,110.24094578]
[1766474609090,0.82,124.42,124.39,2.98271791]
[1766474609292,0.82,124.42,124.4,2.98271791]
[1766474609293,0.1,124.42,124.4,2.98271791]
[1766474610196,0.1,124.42,124.38,14.68]
[1766474610197,0.82,124.42,124.38,14.68]
[1766474610588,0.82,124.42,124.38,22.71955631]
[1766474610799,0.82,124.42,124.38,25.70227422]
[1766474613814,0.82,124.42,124.38,22.71955631]
[1766474614122,0.82,124.42,124.37,25.70318371]
[1766474615117,0.82,124.42,124.38,8.03987544]
[1766474615511,0.82,124.42,124.38,11.02259335]
[1766474616238,1e-08,124.42,124.4,2.98271791]
[1766474616516,0.71,124.45,124.41,17.66271791]
[1766474616723,0.71,124.45,124.42,2.98271791]
[1766474617090,0.71,124.45,124.43,2.98271791]
[1766474617295,0.71,124.45,124.42,2.98271791]
[1766474617512,0.71,124.45,124.41,17.66271791]
[1766474618322,0.71,124.45,124.41,25.70040401]
[1766474619300,2.98271791,124.44,124.37,20.10077106]
[1766474619609,0.66,124.43,124.38,17.66271791]
[1766474619911,0.66,124.42,124.37,2.98271791]
[1766474620125,0.66,124.41,124.37,11.0227845]
[1766474623119,0.66,124.41,124.37,8.04006659]
[1766474624806,0.66,124.41,124.37,11.0227845]
[1766474625327,0.66,124.41,124.38,2.98271791]
[1766474628429,0.66,124.41,124.38,11.02252052]
[1766474631216,0.66,124.41,124.38,2.98271791]
[1766474632335,0.66,124.41,124.38,11.02258587]
[1766474635617,12.49336952,124.46,124.39,2.98271791]
[1766474635834,12.49336952,124.46,124.41,2.98271791]
[1766474635835,10.43767296,124.43,124.41,2.98271791]
[1766474636223,10.43767296,124.44,124.42,2.98271791]
[1766474636443,10.43767296,124.43,124.4,2.98271791]
[1766474637620,10.43767296,124.43,124.4,11.68105574]
[1766474637827,11.09767296,124.43,124.4,11.68105574]
[1766474638048,11.09767296,124.43,124.41,2.98271791]
[1766474638835,11.09767296,124.43,124.4,3.64271791]
[1766474639346,11.09767296,124.43,124.38,14.68]
[1766474639347,0.66,124.42,124.38,11.02247922]
[1766474640236,0.66,124.42,124.37,11.02308633]
[1766474640423,0.66,124.42,124.38,8.03962156]
[1766474640759,0.66,124.42,124.39,2.98271791]
[1766474641055,0.66,124.42,124.4,2.98271791]
[1766474644352,0.66,124.42,124.39,2.98271791]
[1766474645337,10.43767296,124.43,124.4,2.98271791]
[1766474645338,11.09767296,124.43,124.4,2.98271791]
[1766474648158,0.66,124.42,124.38,2.98271791]
[1766474648359,0.66,124.42,124.39,2.98271791]
[1766474649449,0.66,124.42,124.38,8.69946787]
[1766474649755,0.66,124.42,124.39,2.98271791]
[1766474650245,0.66,124.42,124.38,8.69946787]
[1766474650449,0.66,124.42,124.39,2.98271791]
[1766474650649,0.66,124.42,124.38,8.69946787]
[1766474650857,0.66,124.42,124.39,2.98271791]
[1766474651756,10.43767296,124.43,124.39,11.02190908]
[1766474652056,8.03538976,124.45,124.41,2.98271791]
[1766474652057,0.66,124.44,124.41,2.98271791]
[1766474652233,0.66,124.44,124.41,3.64271791]
[1766474652937,10.43767296,124.45,124.42,2.98271791]
[1766474653140,10.43767296,124.45,124.42,3.64271791]
[1766474653459,11.09767296,124.45,124.42,3.64271791]
[1766474654462,11.09767296,124.45,124.42,2.98271791]
[1766474656554,11.09767296,124.45,124.43,2.98271791]
[1766474657141,10.43767296,124.45,124.43,2.98271791]
[1766474657669,0.66,124.44,124.41,2.98271791]
[1766474658160,0.66,124.44,124.41,1.90696964]
[1766474658463,0.66,124.44,124.41,2.56696964]
[1766474660154,0.66,124.44,124.39,10.60620108]
[1766474661063,0.66,124.44,124.41,1.90696964]
[1766474661639,10.43767296,124.45,124.42,1.90696964]
[1766474661852,11.09767296,124.45,124.42,1.90696964]
[1766474662160,0.66,124.44,124.41,2.56696964]
[1766474668877,0.66,124.44,124.41,10.60467477]
[1766474669061,0.66,124.44,124.42,1.90696964]
[1766474670881,0.66,124.44,124.41,10.60467477]
[1766474673179,11.09767296,124.45,124.41,8.69770513]
[1766474673354,11.09767296,124.45,124.41,10.60467477]
[1766474673876,0.66,124.44,124.41,0.66]
[1766474685789,0.72,124.43,124.33,6.1281]
[1766474685989,0.72,124.39,124.35,8.04181745]
[1766474686166,0.72,124.39,124.34,8.70232252]
[1766474686571,0.72,124.39,124.34,10.60929216]
[1766474687092,0.72,124.39,124.35,0.66]
[1766474688491,0.72,124.38,124.33,25.28985721]
[1766474688673,0.72,124.34,124.3,0.66]
[1766474688868,0.72,124.34,124.3,25.29180201]
[1766474689074,0.72,124.34,124.31,0.66]
[1766474689581,0.72,124.34,124.31,2.56696964]
[1766474690592,0.72,124.34,124.31,10.61085025]
[1766474691394,1.90696964,124.33,124.28,10.81311381]
[1766474691598,0.72,124.32,124.28,2.76696964]
[1766474691787,0.72,124.32,124.28,0.2]
[1766474691964,0.72,124.32,124.28,0.86]
[1766474692173,0.72,124.32,124.28,10.8132462]
[1766474692505,0.72,124.32,124.28,2.76696964]
[1766474692745,0.72,124.32,124.28,0.86]
[1766474692995,0.72,124.31,124.28,0.2]
[1766474694287,14.68,124.35,124.28,0.2]
[1766474694504,0.72,124.33,124.29,2.56696964]
[1766474694879,0.72,124.33,124.29,0.66]
[1766474695100,0.72,124.33,124.29,2.56696964]
[1766474695278,0.72,124.33,124.3,2.56696964]
[1766474695887,0.72,124.34,124.31,2.56696964]
[1766474696084,11.15767296,124.36,124.32,0.66]
[1766474697401,0.72,124.34,124.29,8.70526842]
[1766474697613,0.72,124.34,124.3,0.66]
[1766474699709,0.72,124.34,124.3,2.56696964]
[1766474699910,0.72,124.34,124.3,10.61200634]
[1766474700324,12.3446426,124.36,124.31,8.70438119]
[1766474700527,11.15767296,124.36,124.32,2.56696964]
[1766474700827,11.15767296,124.36,124.33,0.66]
[1766474701119,0.72,124.37,124.34,2.56696964]
[1766474701328,0.72,124.39,124.34,2.56696964]
[1766474701620,11.15767296,124.39,124.34,2.56696964]
[1766474701820,0.72,124.38,124.34,2.56696964]
[1766474702031,1.90696964,124.38,124.33,2.56696964]
[1766474702201,0.72,124.37,124.33,2.56696964]
[1766474702824,0.72,124.37,124.33,0.66]
[1766474703029,0.72,124.37,124.33,2.56696964]
[1766474703322,0.72,124.37,124.33,0.66]
[1766474703519,0.72,124.37,124.33,2.56696964]
[1766474705026,0.72,124.37,124.33,10.61006705]
[1766474705533,20.38402635,124.39,124.34,2.56696964]
[1766474705534,0.72,124.38,124.34,2.56696964]
[1766474705826,10.43767296,124.38,124.33,9.95006705]
[1766474706129,0.71,124.37,124.33,8.04309741]
[1766474706313,0.71,124.37,124.33,0.66]
[1766474707026,0.71,124.37,124.33,2.56696964]
[1766474710725,0.71,124.37,124.32,8.04355563]
[1766474711029,0.71,124.37,124.31,16.58696964]
[1766474711030,0.71,124.35,124.31,16.58696964]
[1766474711239,0.71,124.37,124.33,2.56696964]
[1766474711530,11.14767296,124.36,124.32,2.56696964]
[1766474712335,11.14767296,124.36,124.32,10.61067034]
[1766474713412,11.14767296,124.36,124.33,1.90696964]
[1766474713828,0.71,124.36,124.33,1.90696964]
[1766474715414,0.71,124.36,124.33,2.56696964]
[1766474716410,0.71,124.36,124.33,1.90696964]
[1766474720041,0.71,124.36,124.33,2.98372782]
[1766474721847,10.43767296,124.38,124.34,3.64372782]
[1766474722146,0.71,124.37,124.32,11.02737281]
[1766474722328,0.71,124.37,124.32,11.68737281]
[1766474723047,0.71,124.36,124.32,8.04364499]
[1766474723238,0.71,124.36,124.31,20.11005649]
[1766474723239,0.71,124.35,124.31,8.0442958]
[1766474723551,0.71,124.35,124.31,8.7042958]
[1766474724138,0.71,124.34,124.31,8.0442958]
[1766474725153,0.71,124.34,124.31,11.02802362]
[1766474725344,0.71,124.34,124.31,8.0442958]
[1766474726159,0.71,124.34,124.31,11.02802362]
[1766474726867,0.71,124.34,124.31,11.68802362]
[1766474728354,0.71,124.34,124.31,3.64372782]
[1766474729347,0.71,124.37,124.3,28.15768302]
[1766474729653,0.71,124.35,124.31,3.64372782]
[1766474730757,0.71,124.34,124.31,8.04406986]
[1766474738241,0.71,124.34,124.31,11.02779768]
[1766474739283,0.71,124.34,124.31,11.68779768]
[1766474742570,0.68,124.35,124.32,3.64372782]
[1766474744657,0.68,124.35,124.32,11.68747432]
[1766474746061,13.42140078,124.37,124.32,11.68747432]
[1766474746062,10.43767296,124.36,124.34,3.64372782]
[1766474746258,0.66,124.37,124.34,3.64372782]
[1766474746467,11.09767296,124.37,124.34,3.64372782]
[1766474746767,11.09767296,124.37,124.35,2.98372782]
[1766474748867,0.66,124.4,124.36,2.98372782]
[1766474749173,0.66,124.39,124.36,2.98372782]
[1766474749663,0.66,124.39,124.36,3.64372782]
[1766474753074,0.66,124.39,124.37,2.98372782]
[1766474754366,11.09767296,124.4,124.37,3.64372782]
[1766474754569,0.66,124.39,124.37,2.98372782]
[1766474756264,0.66,124.39,124.36,2.98372782]
[1766474756467,0.66,124.39,124.35,3.64372782]
[1766474757878,0.66,124.39,124.36,2.98372782]
[1766474762081,0.66,124.39,124.35,0.66]
[1766474762273,0.66,124.39,124.35,3.64372782]
[1766474763465,2.98372782,124.39,124.35,0.66]
[1766474763664,0.66,124.38,124.34,11.02609376]
[1766474763879,0.66,124.38,124.34,11.68609376]
[1766474764283,0.66,124.38,124.35,2.98372782]
[1766474765784,0.66,124.38,124.36,2.98372782]
[1766474766390,0.66,124.38,124.35,2.98372782]
[1766474769294,0.66,124.38,124.35,3.64372782]
[1766474770295,0.66,124.38,124.35,0.66]
[1766474770488,0.66,124.38,124.35,3.64372782]
[1766474770894,21.4601438,124.4,124.35,3.64372782]
[1766474770895,10.43767296,124.4,124.36,2.98372782]
[1766474771076,0.66,124.38,124.36,2.98372782]
[1766474771282,0.66,124.38,124.35,2.98372782]
[1766474771678,0.66,124.38,124.34,11.02606946]
[1766474772481,0.66,124.38,124.35,2.98372782]
[1766474772895,0.66,124.38,124.33,8.0428845]
[1766474773075,0.66,124.38,124.33,22.7228845]
[1766474773274,0.66,124.38,124.34,2.98372782]
[1766474776203,0.66,124.38,124.33,2.98372782]
[1766474777305,0.66,124.38,124.34,2.98372782]
[1766474779504,0.66,124.38,124.34,11.02618377]
[1766474779703,0.66,124.4,124.37,2.98372782]
[1766474780699,10.43767296,124.39,124.37,2.98372782]
[1766474782202,10.43767296,124.39,124.37,1.90827785]
[1766474783008,0.66,124.42,124.38,1.90827785]
[1766474783503,0.66,124.41,124.36,1.90827785]
[1766474783681,0.66,124.4,124.36,1.90827785]
[1766474784782,0.66,124.4,124.35,8.04164415]
[1766474785106,0.66,124.4,124.34,9.95070767]
[1766474785107,0.66,124.38,124.34,9.95070767]
[1766474787490,0.66,124.38,124.35,1.90827785]
[1766474788495,0.66,124.38,124.34,1.90827785]
[1766474788805,0.66,124.38,124.34,9.95071252]
[1766474789193,0.66,124.38,124.35,1.90827785]
[1766474797607,0.66,124.38,124.33,8.04311107]
[1766474797804,0.66,124.38,124.35,1.90827785]
[1766474806319,0.7,124.35,124.31,18.47642303]
[1766474806515,0.7,124.35,124.29,0.68]
[1766474806516,0.7,124.33,124.29,0.68]
[1766474807609,0.7,124.33,124.29,8.7252944]
[1766474808023,0.7,124.33,124.29,0.68]
[1766474810123,0.7,124.32,124.29,0.68]
[1766474812019,0.7,124.32,124.29,8.72563867]
[1766474812223,0.7,124.34,124.3,0.68]
[1766474812816,2.60827785,124.34,124.3,0.68]
[1766474813131,0.7,124.33,124.3,0.68]
[1766474818930,2.60827785,124.33,124.3,0.68]
[1766474819509,0.7,124.33,124.3,0.68]
[1766474821022,10.43767296,124.34,124.32,0.68]
[1766474821638,15.4,124.35,124.32,0.68]
[1766474827723,20.38672447,124.37,124.32,0.68]
[1766474827724,10.43767296,124.37,124.34,1.90827785]
[1766474827915,0.71,124.39,124.35,2.61827785]
[1766474828246,0.71,124.39,124.35,0.71]
[1766474829545,0.71,124.39,124.34,2.61827785]
[1766474829745,0.71,124.39,124.35,1.90827785]
[1766474830824,0.71,124.39,124.35,2.61827785]
[1766474831134,0.71,124.38,124.34,2.61827785]
[1766474831343,0.71,124.38,124.34,0.71]
[1766474831540,0.71,124.38,124.34,2.61827785]
[1766474832131,0.71,124.37,124.33,1.90827785]
[1766474832433,0.71,124.37,124.33,0.71]
[1766474832830,0.71,124.36,124.33,0.71]
[1766474835552,0.71,124.36,124.32,2.61827785]
[1766474835744,0.71,124.36,124.32,0.71]
[1766474835935,0.71,124.36,124.32,2.61827785]
[1766474837252,14.7,124.37,124.33,1.90827785]
[1766474837442,10.43767296,124.4,124.35,0.71]
[1766474837443,0.71,124.38,124.35,0.71]
[1766474838858,0.71,124.38,124.35,2.61827785]
[1766474843363,0.71,124.38,124.35,0.71]
[1766474844234,0.71,124.37,124.34,0.71]
[1766474848461,0.71,124.37,124.34,3.6929392]
[1766474850064,0.71,124.37,124.34,0.71]
[1766474850269,0.71,124.37,124.34,3.6929392]
[1766474850964,0.71,124.37,124.34,0.71]
[1766474851865,11.14767296,124.37,124.35,3.6529392]
[1766474853265,11.14767296,124.37,124.35,0.67]
[1766474854756,8.03944976,124.39,124.35,3.6529392]
[1766474855065,0.67,124.38,124.35,0.67]
[1766474860873,0.72,124.37,124.34,3.6829392]
[1766474861774,0.72,124.37,124.34,0.7]
[1766474865875,0.72,124.37,124.34,3.6829392]
[1766474867777,0.72,124.37,124.34,0.7]
[1766474874873,0.72,124.36,124.33,2.9829392]
[1766474875183,0.72,124.36,124.33,0.7]
[1766474875563,0.72,124.36,124.33,3.6829392]
[1766474875762,0.72,124.36,124.31,8.04427112]
[1766474875763,0.72,124.35,124.31,3.6829392]
[1766474876872,2.9829392,124.35,124.31,0.7]
[1766474877078,0.72,124.34,124.31,0.7]
[1766474878477,0.72,124.34,124.3,0.7]
[1766474878799,0.72,124.34,124.31,0.7]
[1766474882279,0.72,124.34,124.31,3.6829392]
[1766474885001,0.72,124.34,124.31,0.7]
[1766474886076,0.72,124.34,124.31,3.6829392]
[1766474889798,0.72,124.34,124.31,2.9829392]
[1766474890000,8.76133875,124.36,124.33,3.6529392]
[1766474890379,14.68,124.38,124.34,3.6529392]
[1766474890684,0.72,124.38,124.34,3.6529392]
[1766474891300,0.72,124.37,124.34,3.6529392]
[1766474892185,0.72,124.37,124.34,0.67]
[1766474895501,3.7029392,124.37,124.34,0.67]
[1766474896807,0.72,124.36,124.33,0.67]
[1766474899408,0.72,124.38,124.34,0.67]
[1766474899615,3.7029392,124.38,124.34,0.67]
[1766474899911,2.9829392,124.37,124.34,0.67]
[1766474900289,3.7029392,124.37,124.34,0.67]
[1766474900485,0.72,124.36,124.34,0.67]
[1766474901805,3.7029392,124.37,124.34,0.67]
[1766474902012,0.72,124.37,124.34,0.67]
[1766474902381,2.9829392,124.38,124.34,0.67]
[1766474902580,3.7029392,124.38,124.34,0.67]
[1766474903007,2.9829392,124.38,124.34,0.67]
[1766474903199,0.72,124.37,124.34,0.67]
[1766474905012,3.7029392,124.38,124.34,0.67]
[1766474905706,0.72,124.39,124.35,17.6829392]
[1766474905905,0.72,124.39,124.36,0.67]
[1766474906212,2.62873538,124.39,124.36,0.67]
[1766474907817,0.72,124.39,124.36,0.67]
[1766474908022,2.62873538,124.39,124.36,0.67]
[1766474909996,0.72,124.4,124.36,0.67]
[1766474910322,2.62873538,124.4,124.36,0.67]
[1766474919209,1.90873538,124.38,124.35,19.77591144]
[1766474919421,2.56873538,124.37,124.34,0.71]
[1766474919918,0.66,124.37,124.34,0.71]
[1766474921431,2.56873538,124.37,124.34,0.71]
[1766474925444,0.66,124.37,124.34,0.71]
[1766474926217,9.94901746,124.38,124.34,0.71]
[1766474926421,10.60901746,124.38,124.34,0.71]
[1766474927037,0.66,124.37,124.34,0.71]
[1766474928433,0.66,124.37,124.35,0.71]
[1766474937743,0.66,124.37,124.33,32.67093646]
[1766474937744,0.66,124.37,124.33,8.74938364]
[1766474937931,0.66,124.34,124.32,0.71]
[1766474938236,2.56873538,124.35,124.32,0.71]
[1766474940342,0.66,124.35,124.32,0.71]
[1766474942225,2.56873538,124.35,124.32,0.71]
[1766474943538,0.66,124.35,124.32,0.71]
[1766474943740,2.56873538,124.35,124.32,0.71]
[1766474946122,1.90873538,124.33,124.29,0.66]
[1766474946327,1.90873538,124.31,124.28,0.86]
[1766474946541,0.71,124.3,124.28,0.86]
[1766474946930,1.90873538,124.3,124.28,0.2]
[1766474947134,0.71,124.29,124.28,0.2]
[1766474947751,2.61873538,124.29,124.28,0.2]
[1766474947971,0.71,124.29,124.28,0.2]
[1766474957254,13.05640834,124.32,124.29,0.66]
[1766474957458,11.14767296,124.33,124.3,0.66]
[1766474957757,0.71,124.33,124.3,0.66]
[1766474958347,1.90873538,124.34,124.3,0.66]
[1766474958552,27.04640834,124.35,124.31,0.66]
[1766474958863,0.71,124.34,124.31,0.66]
[1766474960239,15.41,124.35,124.32,0.66]
[1766474960435,16.60873538,124.35,124.32,0.66]
[1766474960640,16.60873538,124.35,124.31,9.95310555]
[1766474960641,0.71,124.34,124.31,9.95310555]
[1766474960839,0.71,124.34,124.31,10.61310555]
[1766474961143,0.71,124.34,124.31,8.70437017]
[1766474961456,0.71,124.34,124.31,0.66]
[1766474964669,2.61873538,124.34,124.31,0.66]
[1766474968058,3.69522395,124.34,124.31,0.66]
[1766474970272,0.71,124.34,124.31,0.66]
[1766474973381,3.69522395,124.34,124.31,0.66]
[1766474979191,0.71,124.34,124.31,0.66]
[1766474979362,0.71,124.36,124.33,0.69]
[1766474981875,0.71,124.37,124.33,8.04307979]
[1766474982075,0.71,124.37,124.34,0.69]
[1766474983073,3.69522395,124.37,124.34,0.69]
[1766474984175,0.71,124.37,124.34,0.69]
[1766474984488,3.69522395,124.37,124.34,0.69]
[1766474986385,25.84767296,124.38,124.35,0.69]
[1766474986574,11.14767296,124.38,124.35,0.69]
[1766474989389,11.14767296,124.38,124.36,0.69]
[1766474990097,11.14767296,124.38,124.35,0.69]
[1766475000592,0.71,124.38,124.35,0.69]
[1766475000894,10.43767296,124.39,124.36,0.69]
[1766475001094,0.71,124.37,124.34,0.69]
[1766475002288,0.71,124.37,124.35,0.69]
[1766475002712,10.43767296,124.39,124.35,8.04162733]
[1766475002881,11.14767296,124.4,124.36,0.69]
[1766475003207,0.71,124.39,124.37,0.69]
[1766475005380,0.71,124.39,124.35,11.02685128]
[1766475005594,3.69522395,124.38,124.35,0.69]
[1766475005794,3.69522395,124.38,124.31,20.11045715]
[1766475005795,0.71,124.37,124.33,3.70522395]
[1766475006602,0.71,124.37,124.34,0.72]
[1766475008206,0.69,124.36,124.34,0.72]
[1766475009803,0.69,124.36,124.33,0.72]
[1766475010200,11.12767296,124.37,124.34,0.72]
[1766475010584,0.69,124.36,124.34,0.72]
[1766475010795,0.69,124.36,124.32,11.74876049]
[1766475011088,0.69,124.36,124.33,0.72]
[1766475020292,0.69,124.36,124.33,3.70522395]
[1766475020507,0.69,124.41,124.36,0.72]
[1766475020793,2.98522395,124.41,124.37,0.72]
[1766475021100,10.43767296,124.39,124.37,0.72]
[1766475021618,0.69,124.4,124.37,0.72]
[1766475021913,0.69,124.43,124.38,3.70522395]
[1766475022117,0.69,124.41,124.38,0.72]
[1766475023811,0.69,124.43,124.4,0.72]
[1766475024311,11.12767296,124.43,124.4,0.72]
[1766475024615,10.43767296,124.43,124.4,0.72]
[1766475024815,11.12767296,124.43,124.4,0.72]
[1766475025422,10.43767296,124.43,124.4,0.72]
[1766475025714,10.43767296,124.43,124.41,0.72]
[1766475026300,11.12767296,124.43,124.41,0.72]
[1766475026795,11.12767296,124.43,124.4,8.03852637]
[1766475026796,11.12767296,124.43,124.4,8.75852637]
[1766475027698,11.12767296,124.43,124.4,0.72]
[1766475030598,10.43767296,124.43,124.4,0.72]
[1766475031102,13.03524925,124.43,124.4,0.72]
[1766475032331,11.12767296,124.43,124.4,0.72]
[1766475032509,13.03524925,124.43,124.4,0.72]
[1766475034807,11.12767296,124.43,124.4,0.72]
[1766475035013,13.03524925,124.43,124.4,0.72]
[1766475037531,11.12767296,124.43,124.4,0.72]
[1766475040628,12.34524925,124.43,124.4,0.72]
[1766475040928,0.68,124.42,124.4,0.72]
[1766475041131,0.68,124.42,124.39,0.66]
[1766475041626,0.68,124.42,124.38,0.66]
[1766475041627,1.90757629,124.42,124.38,0.66]
[1766475041830,0.68,124.41,124.38,0.66]
[1766475042338,0.68,124.41,124.39,0.66]
[1766475054540,0.68,124.41,124.39,8.69884821]
[1766475057942,0.68,124.42,124.39,8.03884821]
[1766475058246,0.68,124.42,124.39,8.69884821]
[1766475059128,2.58757629,124.41,124.38,8.69968271]
[1766475059447,0.68,124.41,124.39,0.66]
[1766475065052,0.68,124.42,124.39,8.69919979]
[1766475065225,0.68,124.42,124.4,0.66]
[1766475066348,0.66,124.43,124.41,0.72]
[1766475066649,11.09767296,124.43,124.41,0.72]
[1766475066838,11.09767296,124.43,124.4,8.75851542]
[1766475068154,10.43767296,124.43,124.41,0.72]
[1766475069141,11.09767296,124.43,124.41,0.72]
[1766475069840,0.66,124.43,124.41,0.72]
[1766475070253,11.09767296,124.43,124.41,0.72]
[1766475072028,11.09767296,124.43,124.4,7.71e-06]
[1766475072831,0.66,124.44,124.4,1.907584]
[1766475073255,0.66,124.43,124.4,7.71e-06]
[1766475073952,0.66,124.43,124.4,0.72000771]
[1766475074344,0.66,124.43,124.4,8.75815764]
[1766475074746,1.90757629,124.44,124.41,0.72]
[1766475074935,0.66,124.44,124.41,0.72]
[1766475076752,5.11841445,124.46,124.43,0.72]
[1766475076957,0.66,124.45,124.43,1.128e-05]
[1766475077545,0.66,124.45,124.42,2.14e-06]
[1766475079769,0.66,124.45,124.42,1.90757629]
[1766475079954,0.66,124.45,124.41,1.90757629]
[1766475080544,0.66,124.45,124.41,29.10757629]
[1766475081069,0.66,124.45,124.41,37.14517136]
[1766475081870,0.66,124.45,124.41,35.23759507]
[1766475082165,0.66,124.45,124.41,37.14517136]
[1766475085872,0.66,124.45,124.42,1.90757629]
[1766475086741,0.66,124.45,124.42,9.94467962]
[1766475090076,4.45841445,124.46,124.44,2.97823657]
[1766475090273,5.11841445,124.46,124.43,8.03658883]
[1766475090456,0.66,124.45,124.43,2.97823657]
[1766475090969,4.45841445,124.46,124.43,2.97823657]
[1766475090970,5.11841445,124.46,124.43,2.97823657]
[1766475093877,5.11841445,124.46,124.43,11.01483456]
[1766475094575,5.11841445,124.46,124.44,2.97823657]
[1766475095479,5.11841445,124.46,124.43,11.01483456]
[1766475096455,0.1,124.47,124.44,2.97823657]
[1766475096650,0.71,124.49,124.46,2.97823657]
[1766475096855,10.43767296,124.49,124.44,14.68]
[1766475097075,0.71,124.48,124.46,2.97823657]
[1766475097277,3.07823657,124.5,124.46,2.97823657]
[1766475097278,0.71,124.49,124.46,2.97823657]
[1766475097456,0.71,124.48,124.44,14.68]
[1766475097788,0.71,124.48,124.46,2.97823657]
[1766475097950,0.81,124.5,124.46,11.0125873]
[1766475098366,0.81,124.5,124.47,2.97823657]